bitfinex/quotes_SOLUSD_20250928
["timestamp","ask_amount","ask_price","bid_price","bid_amount"]
[1759044428303,0.55,202.4,202.36,1.87824966]
[1759044428522,69.49034188,202.42,202.36,2.55824966]
[1759044428720,0.55,202.41,202.36,2.55824966]
[1759044429029,2.42824966,202.41,202.36,0.68]
[1759044429623,6.81896112,202.4,202.31,12.35490977]
[1759044429825,1.87824966,202.36,202.31,0.71]
[1759044430126,1.87824966,202.35,202.32,0.71]
[1759044430325,1.87824966,202.34,202.31,0.71]
[1759044431837,1.87824966,202.34,202.29,5.65339809]
[1759044432013,1.87824966,202.34,202.3,0.71]
[1759044432527,1.87824966,202.34,202.31,0.71]
[1759044432838,27.87824966,202.35,202.32,0.71]
[1759044436443,27.87824966,202.35,202.26,4.94413131]
[1759044436444,1.87824966,202.33,202.26,4.94413131]
[1759044436741,1.87824966,202.32,202.27,0.71]
[1759044437635,6.82067045,202.33,202.27,5.65369503]
[1759044437941,1.87824966,202.32,202.28,0.71]
[1759044438125,1.87824966,202.32,202.29,0.71]
[1759044438525,1.87824966,202.32,202.27,5.65369503]
[1759044438835,1.87824966,202.32,202.28,0.71]
[1759044439044,1.87824966,202.32,202.29,0.71]
[1759044440435,7.37067045,202.33,202.29,0.71]
[1759044440624,6.82067045,202.33,202.29,0.71]
[1759044441229,39.87824966,202.34,202.29,2.58824966]
[1759044441532,39.87824966,202.34,202.3,0.71]
[1759044441714,39.87824966,202.34,202.29,1.87824966]
[1759044441914,44.82052,202.34,202.31,0.71]
[1759044442323,44.82052,202.34,202.29,0.71]
[1759044442539,44.82052,202.34,202.3,0.71]
[1759044443442,42.94227034,202.34,202.31,0.71]
[1759044443633,42.94227034,202.34,202.32,0.71]
[1759044444620,38.0,202.34,202.32,0.71]
[1759044446240,38.0,202.34,202.3,5.65311539]
[1759044446935,39.87824966,202.34,202.3,5.65311539]
[1759044448537,39.87824966,202.34,202.29,4.94339809]
[1759044448721,39.87824966,202.34,202.3,0.71]
[1759044448922,39.87824966,202.34,202.31,0.71]
[1759044449336,1.87824966,202.34,202.29,4.94339809]
[1759044449537,1.87824966,202.34,202.32,0.71]
[1759044450124,1.87824966,202.34,202.29,4.94339809]
[1759044450330,2.42824966,202.34,202.3,0.71]
[1759044451354,2.42824966,202.34,202.3,5.65314831]
[1759044451650,1.87824966,202.34,202.3,5.65314831]
[1759044452452,1.87824966,202.34,202.3,0.71]
[1759044455328,2.42824966,202.34,202.3,0.71]
[1759044455530,6.82042958,202.34,202.3,0.71]
[1759044455835,1.87824966,202.34,202.3,5.65314968]
[1759044456042,1.87824966,202.34,202.31,0.71]
[1759044458844,1.87824966,202.34,202.29,4.94339809]
[1759044459045,1.87824966,202.34,202.3,0.71]
[1759044459248,1.87824966,202.34,202.31,0.71]
[1759044466336,1.87824966,202.34,202.32,0.71]
[1759044466562,37.92,202.35,202.33,0.71]
[1759044466957,32.81945019,202.38,202.34,0.71]
[1759044467155,27.87824966,202.35,202.31,0.71]
[1759044467354,1.87824966,202.33,202.29,0.71]
[1759044467539,1.87824966,202.33,202.28,4.94362481]
[1759044467744,1.87824966,202.33,202.3,0.71]
[1759044468863,1.87824966,202.32,202.3,0.71]
[1759044472555,2.93873606,202.32,202.3,0.71]
[1759044473259,7.88118058,202.33,202.3,0.71]
[1759044473940,2.93873606,202.33,202.3,0.71]
[1759044475144,3.33956929,202.32,202.3,0.71]
[1759044475354,2.93873606,202.33,202.3,0.71]
[1759044475536,3.33956929,202.32,202.3,0.71]
[1759044475741,2.93873606,202.33,202.3,0.71]
[1759044475963,3.33956929,202.32,202.3,0.71]
[1759044476269,2.93873606,202.33,202.3,0.71]
[1759044476455,3.33972488,202.32,202.3,0.71]
[1759044476654,2.93873606,202.33,202.3,0.71]
[1759044476955,3.33972488,202.32,202.3,0.71]
[1759044477158,2.93873606,202.33,202.3,0.71]
[1759044477361,3.33990925,202.32,202.3,0.71]
[1759044477666,2.93873606,202.33,202.3,0.71]
[1759044477867,3.33990925,202.32,202.3,0.71]
[1759044478055,2.93873606,202.33,202.3,0.71]
[1759044478370,3.34011462,202.32,202.3,0.71]
[1759044478667,2.93873606,202.33,202.3,0.71]
[1759044478868,3.34011504,202.32,202.3,0.71]
[1759044479053,2.93873606,202.33,202.3,0.71]
[1759044479254,3.34035841,202.32,202.3,0.71]
[1759044479470,2.93873606,202.33,202.3,0.71]
[1759044479667,3.34035884,202.32,202.3,5.6531138]
[1759044479965,6.27887291,202.35,202.31,0.68]
[1759044480152,3.34013685,202.34,202.31,0.68]
[1759044480352,3.34013685,202.33,202.31,0.68]
[1759044480567,3.48873606,202.35,202.31,0.68]
[1759044480739,3.34049031,202.34,202.31,0.68]
[1759044480945,3.34049031,202.33,202.31,0.68]
[1759044481139,8.43073289,202.35,202.31,0.68]
[1759044481343,3.34086806,202.34,202.31,0.68]
[1759044481548,3.34086806,202.33,202.31,0.68]
[1759044481758,8.43073289,202.35,202.31,0.68]
[1759044481954,2.93873606,202.33,202.29,0.68]
[1759044482143,6.82978168,202.32,202.27,0.68]
[1759044482354,3.48873606,202.32,202.27,0.68]
[1759044482768,3.48873606,202.32,202.28,0.68]
[1759044483064,0.55,202.32,202.28,0.68]
[1759044484173,8.43132698,202.33,202.29,0.68]
[1759044484474,3.34109473,202.32,202.29,0.68]
[1759044484764,7.88132698,202.33,202.26,4.94413131]
[1759044484972,3.89109515,202.32,202.28,0.68]
[1759044485165,0.55,202.32,202.28,0.68]
[1759044485364,3.48873606,202.33,202.29,0.68]
[1759044485670,3.34104375,202.32,202.29,0.68]
[1759044485872,3.48873606,202.33,202.29,0.68]
[1759044486069,3.34104418,202.32,202.3,0.68]
[1759044486264,4.94227549,202.34,202.3,0.68]
[1759044486466,3.3408906,202.33,202.31,0.68]
[1759044486671,3.3408906,202.32,202.31,0.68]
[1759044488379,68.82169108,202.36,202.31,5.62290939]
[1759044488565,3.34066816,202.35,202.32,0.68]
[1759044488764,3.34066816,202.34,202.32,0.68]
[1759044488965,68.82169108,202.36,202.32,0.68]
[1759044489167,3.34066757,202.35,202.32,0.68]
[1759044489479,3.34066757,202.34,202.32,0.68]
[1759044489674,69.37169108,202.36,202.32,0.68]
[1759044489864,3.34036963,202.35,202.32,0.68]
[1759044490176,3.34036963,202.34,202.32,0.68]
[1759044490372,68.82169108,202.36,202.31,4.94290939]
[1759044490581,3.34012529,202.35,202.32,0.7]
[1759044490768,3.34012529,202.34,202.33,0.7]
[1759044491776,26.0,202.36,202.33,5.64242079]
[1759044491981,3.33981934,202.35,202.34,0.7]
[1759044495796,3.33828697,202.37,202.34,5.64217653]
[1759044495965,3.33828697,202.36,202.35,0.7]
[1759044496158,3.33828697,202.39,202.35,0.7]
[1759044496362,3.33828697,202.38,202.35,0.7]
[1759044496679,37.88,202.4,202.35,0.7]
[1759044496860,3.33732622,202.39,202.35,0.7]
[1759044497059,3.33732622,202.38,202.36,4.94168808]
[1759044497282,37.88,202.4,202.37,0.7]
[1759044497466,3.33645242,202.39,202.37,0.7]
[1759044497672,3.33645242,202.38,202.37,0.7]
[1759044498584,4.57448071,202.38,202.37,0.7]
[1759044499174,1.23802829,202.38,202.36,4.94168808]
[1759044499376,1.23802829,202.37,202.36,5.64168808]
[1759044499892,1.78802829,202.37,202.34,7.87946425]
[1759044500183,1.23802829,202.36,202.33,2.93873606]
[1759044500491,2.93873606,202.38,202.34,0.68]
[1759044500680,1.23804334,202.37,202.34,0.68]
[1759044500986,1.23804334,202.36,202.34,5.6219871]
[1759044501185,6.27300768,202.38,202.34,5.6219871]
[1759044501380,1.23804286,202.37,202.34,5.6219871]
[1759044501598,1.23804301,202.36,202.34,5.6219871]
[1759044501763,6.27300768,202.38,202.34,5.6219871]
[1759044501964,1.23804317,202.37,202.34,5.6219871]
[1759044502164,1.23804317,202.36,202.34,5.6219871]
[1759044502359,6.27300768,202.38,202.34,4.9419871]
[1759044502677,1.23803896,202.37,202.35,0.68]
[1759044502884,3.33427162,202.38,202.36,0.68]
[1759044503081,1.23803829,202.37,202.36,5.62168808]
[1759044506272,1.23803829,202.37,202.36,0.68]
[1759044506470,2.93873606,202.4,202.36,0.68]
[1759044506669,1.23797752,202.39,202.35,4.94193229]
[1759044506883,1.23797752,202.38,202.36,0.68]
[1759044507077,6.27111602,202.4,202.37,0.68]
[1759044507379,1.23797689,202.39,202.37,0.68]
[1759044507591,1.23797689,202.38,202.37,0.68]
[1759044508497,1.23797689,202.38,202.37,5.62144388]
[1759044509392,3.33237996,202.4,202.37,5.62144388]
[1759044509594,1.23796704,202.39,202.37,5.62144388]
[1759044509792,3.33237996,202.4,202.37,5.62144388]
[1759044509981,1.23796704,202.39,202.37,5.62144388]
[1759044510183,3.33237996,202.4,202.37,5.62144388]
[1759044510479,1.2379672,202.39,202.37,5.62144388]
[1759044510773,3.33237996,202.4,202.37,5.62144388]
[1759044510974,1.2379672,202.39,202.37,5.62144388]
[1759044511193,32.27111602,202.41,202.37,5.62144388]
[1759044511391,1.2379672,202.4,202.37,5.62144388]
[1759044511582,1.2379672,202.39,202.37,5.62144388]
[1759044511793,32.27111602,202.41,202.37,5.62144388]
[1759044511998,1.23796688,202.4,202.37,5.62144388]
[1759044512196,1.23796688,202.39,202.36,4.94166384]
[1759044512380,37.76159623,202.41,202.36,5.62166384]
[1759044512582,4.17670342,202.4,202.36,5.62166384]
[1759044512781,1.23796736,202.39,202.36,5.62166384]
[1759044512990,2.93873606,202.4,202.36,5.62166384]
[1759044513192,1.23796736,202.39,202.36,5.62166384]
[1759044513510,2.93873606,202.4,202.37,0.68]
[1759044513676,1.23796736,202.39,202.35,4.94193229]
[1759044513874,2.93873606,202.4,202.36,0.68]
[1759044514108,1.23796751,202.39,202.35,4.94193229]
[1759044514305,2.93873606,202.4,202.37,0.68]
[1759044514490,1.23796751,202.39,202.37,0.68]
[1759044514686,2.93873606,202.4,202.37,0.68]
[1759044514990,1.2379672,202.39,202.37,0.68]
[1759044515188,2.93873606,202.4,202.37,0.68]
[1759044515404,1.2379672,202.39,202.37,0.68]
[1759044515707,2.93873606,202.4,202.37,5.62134076]
[1759044515891,1.23796704,202.39,202.37,5.62134076]
[1759044516198,2.93873606,202.4,202.38,0.68]
[1759044516397,1.2379672,202.39,202.38,0.68]
[1759044520389,1.23795857,202.39,202.38,0.68]
[1759044521008,1.23795857,202.39,202.36,5.62168808]
[1759044521210,32.27111602,202.41,202.37,0.68]
[1759044521389,1.23795841,202.4,202.37,0.68]
[1759044521589,1.23795841,202.39,202.37,0.68]
[1759044521802,32.82111602,202.41,202.37,0.68]
[1759044521996,32.82111602,202.41,202.37,5.62137148]
[1759044521997,1.23795873,202.4,202.37,5.62137148]
[1759044522199,1.23795873,202.39,202.37,5.62137148]
[1759044522410,37.76161698,202.41,202.37,0.68]
[1759044522613,4.17670322,202.4,202.37,0.68]
[1759044522798,1.78796716,202.39,202.35,4.94188508]
[1759044522998,1.23796716,202.38,202.35,5.62188508]
[1759044523199,2.93873606,202.39,202.36,0.68]
[1759044523513,1.23797716,202.38,202.36,0.68]
[1759044523712,2.93873606,202.39,202.36,0.68]
[1759044523916,3.33237996,202.4,202.36,0.68]
[1759044523917,1.23797732,202.38,202.36,0.68]
[1759044524214,6.82111602,202.4,202.36,0.68]
[1759044524392,1.23797732,202.39,202.36,0.68]
[1759044524593,1.23797732,202.38,202.36,0.68]
[1759044524802,6.82111602,202.4,202.36,0.68]
[1759044525001,1.23797732,202.39,202.36,0.68]
[1759044525203,1.23797732,202.38,202.36,0.68]
[1759044525411,6.82111602,202.4,202.36,0.68]
[1759044525611,1.23797732,202.39,202.36,0.68]
[1759044525806,1.23797732,202.38,202.36,0.68]
[1759044526018,6.82111602,202.4,202.36,0.68]
[1759044526314,1.23797701,202.39,202.36,0.68]
[1759044526497,1.23797701,202.38,202.36,0.68]
[1759044526818,6.82111602,202.4,202.36,0.68]
[1759044526996,1.23793468,202.39,202.36,5.62167598]
[1759044527193,6.82111602,202.4,202.36,5.62167598]
[1759044527393,1.23793452,202.39,202.36,5.62167598]
[1759044527714,6.82111602,202.4,202.36,5.62167598]
[1759044528013,1.23793452,202.39,202.36,5.62167598]
[1759044528214,6.82111602,202.4,202.36,5.62167598]
[1759044528415,1.23793452,202.39,202.36,5.62167598]
[1759044528597,6.82111602,202.4,202.36,5.62167598]
[1759044529220,6.82111602,202.4,202.36,0.68]
[1759044530113,2.93873606,202.4,202.36,5.62154502]
[1759044530420,2.93873606,202.4,202.37,0.71]
[1759044531796,6.27316593,202.4,202.37,0.71]
[1759044532112,2.93873606,202.4,202.37,0.71]
[1759044533428,3.335732,202.39,202.37,0.71]
[1759044533716,2.93873606,202.4,202.37,0.71]
[1759044533917,3.335732,202.39,202.37,0.71]
[1759044534126,2.93873606,202.4,202.37,0.71]
[1759044534305,3.33611358,202.39,202.37,0.71]
[1759044534505,2.93873606,202.4,202.37,0.71]
[1759044534710,3.33611401,202.39,202.37,0.71]
[1759044534907,1.87925356,202.4,202.37,0.71]
[1759044535109,3.33611358,202.39,202.37,0.71]
[1759044535426,1.87925356,202.4,202.37,0.71]
[1759044535717,3.33655834,202.39,202.37,0.71]
[1759044535892,1.87925356,202.4,202.37,0.71]
[1759044536092,3.33655877,202.39,202.37,0.71]
[1759044536318,1.87925356,202.4,202.37,0.71]
[1759044536517,3.33708081,202.39,202.37,0.71]
[1759044536821,1.87925356,202.4,202.37,0.71]
[1759044537023,3.33708081,202.39,202.37,0.71]
[1759044537203,1.87925356,202.4,202.37,0.71]
[1759044537406,3.33747265,202.39,202.37,0.71]
[1759044537623,1.87925356,202.4,202.37,0.71]
[1759044537824,3.33747265,202.39,202.37,0.71]
[1759044538005,1.87925356,202.4,202.37,0.71]
[1759044538206,3.33747265,202.39,202.37,0.71]
[1759044538414,1.87925356,202.4,202.37,0.71]
[1759044538613,3.3379337,202.39,202.37,0.71]
[1759044538925,1.87925356,202.4,202.37,0.71]
[1759044539149,3.3379337,202.39,202.37,0.71]
[1759044539320,1.87925356,202.4,202.37,0.71]
[1759044539625,3.33848769,202.39,202.37,0.71]
[1759044539814,1.87925356,202.4,202.37,0.71]
[1759044540124,3.33848726,202.39,202.37,0.71]
[1759044540336,3.33848726,202.38,202.37,0.71]
[1759044541402,3.33848726,202.38,202.35,10.30989755]
[1759044541630,1.87925356,202.39,202.36,0.71]
[1759044541922,3.33931576,202.38,202.37,0.71]
[1759044543233,10.70998009,202.38,202.35,5.36798962]
[1759044543417,10.70998009,202.38,202.31,0.71]
[1759044543418,1.87925356,202.36,202.31,0.71]
[1759044543727,1.87925356,202.34,202.31,0.71]
[1759044544325,1.87925356,202.34,202.3,18.53864958]
[1759044544500,5.49188254,202.36,202.31,0.71]
[1759044544703,5.21830212,202.35,202.32,0.71]
[1759044544916,1.87925356,202.35,202.32,0.71]
[1759044545136,3.33910717,202.34,202.32,0.71]
[1759044545309,1.87925356,202.35,202.32,0.71]
[1759044545710,1.87925356,202.36,202.33,0.71]
[1759044545936,3.33830331,202.35,202.33,0.71]
[1759044546118,1.87925356,202.37,202.33,0.71]
[1759044546440,3.33824738,202.36,202.34,0.71]
[1759044546660,3.33824738,202.35,202.33,5.6522721]
[1759044546938,1.87925356,202.36,202.32,15.580257]
[1759044547149,3.33780492,202.35,202.33,0.71]
[1759044547319,1.87925356,202.36,202.33,0.71]
[1759044547516,3.33730793,202.35,202.33,0.71]
[1759044547728,1.87925356,202.36,202.33,0.71]
[1759044547914,3.33733065,202.35,202.33,0.71]
[1759044548235,1.87925356,202.36,202.33,0.71]
[1759044548419,3.33683806,202.35,202.33,0.71]
[1759044548611,1.87925356,202.36,202.33,0.71]
[1759044548810,3.33683806,202.35,202.33,0.71]
[1759044549010,1.87925356,202.36,202.33,0.71]
[1759044549211,3.33683849,202.35,202.33,0.71]
[1759044549446,7.37077906,202.37,202.33,0.71]
[1759044549613,3.33638293,202.36,202.33,0.71]
[1759044549930,3.33638293,202.35,202.33,0.71]
[1759044550135,7.37077906,202.37,202.33,0.71]
[1759044550335,3.3363329,202.36,202.33,0.71]
[1759044550533,3.3363329,202.35,202.33,0.71]
[1759044550741,3.3363329,202.36,202.34,14.87025701]
[1759044550933,3.3363329,202.35,202.34,14.87025701]
[1759044551245,3.3363329,202.36,202.34,14.87025701]
[1759044551540,2.42925356,202.37,202.34,14.87025701]
[1759044551731,3.33563821,202.36,202.34,14.87025701]
[1759044551934,1.87925356,202.37,202.34,14.87025701]
[1759044552138,3.33563779,202.36,202.34,15.56025701]
[1759044552438,71.23051916,202.38,202.34,15.56025701]
[1759044552746,3.33530669,202.37,202.34,15.56025701]
[1759044552938,71.23051916,202.38,202.34,15.56025701]
[1759044553233,3.33516525,202.37,202.34,15.56025701]
[1759044553428,71.23051916,202.38,202.34,15.56025701]
[1759044553630,3.3350424,202.37,202.34,15.56025701]
[1759044553932,71.23051916,202.38,202.34,15.56025701]
[1759044554160,5.21429605,202.37,202.34,15.56025701]
[1759044554436,1.87925356,202.37,202.34,15.56025701]
[1759044557445,71.23051916,202.38,202.34,15.56025701]
[1759044557637,3.33460804,202.37,202.34,15.56025701]
[1759044557838,71.23051916,202.38,202.34,15.56025701]
[1759044558033,3.33460804,202.37,202.34,15.56025701]
[1759044558231,71.23051916,202.38,202.34,15.56025701]
[1759044558432,3.33454077,202.37,202.34,15.56025701]
[1759044558636,71.23051916,202.38,202.34,14.87025701]
[1759044558838,3.33454034,202.37,202.34,15.56025701]
[1759044559041,33.37051916,202.38,202.34,15.56025701]
[1759044559338,3.33446709,202.37,202.34,15.56025701]
[1759044559517,33.37051916,202.38,202.34,15.56025701]
[1759044559721,3.33449186,202.37,202.34,15.56025701]
[1759044559940,33.37051916,202.38,202.34,15.56025701]
[1759044560131,5.21374499,202.37,202.34,15.56025701]
[1759044560328,4.94154874,202.37,202.34,14.87025701]
[1759044560646,5.21373888,202.36,202.34,15.53025701]
[1759044561041,5.21373888,202.36,202.34,0.66]
[1759044562452,3.33448532,202.36,202.34,0.66]
[1759044562747,3.33448532,202.36,202.34,15.530257]
[1759044563046,3.33448532,202.36,202.34,0.66]
[1759044564158,3.33448532,202.36,202.34,15.530257]
[1759044564449,10.15555102,202.36,202.34,14.870257]
[1759044564625,5.76373888,202.35,202.27,1.87925356]
[1759044564830,1.87925356,202.32,202.28,0.66]
[1759044565235,1.87925356,202.31,202.28,0.66]
[1759044565839,1.87925356,202.31,202.29,3.33476793]
[1759044566257,4.94315373,202.3,202.28,0.66]
[1759044566458,6.82240729,202.3,202.27,0.66]
[1759044566762,6.82240729,202.3,202.28,6.8236008]
[1759044566936,6.82240729,202.3,202.27,0.66]
[1759044567127,6.82240729,202.3,202.27,7.48240729]
[1759044567528,6.82240729,202.3,202.28,0.66]
[1759044569564,6.82240729,202.3,202.27,6.82240729]
[1759044569755,7.37240729,202.3,202.27,6.82240729]
[1759044570156,0.55,202.29,202.24,0.66]
[1759044570350,1.87925356,202.28,202.24,0.66]
[1759044570556,1.87925356,202.28,202.26,6.82386357]
[1759044570944,2.42925356,202.28,202.24,0.66]
[1759044571147,1.87925356,202.28,202.25,7.48386357]
[1759044572866,4.94388688,202.27,202.25,7.48386357]
[1759044573744,4.94388688,202.27,202.25,6.82386357]
[1759044574280,27.87925356,202.26,202.23,0.66]
[1759044574454,27.87925356,202.26,202.23,5.60388688]
[1759044574974,26.0,202.27,202.24,0.66]
[1759044575155,68.80364368,202.28,202.24,2.53925356]
[1759044575578,26.0,202.26,202.25,0.66]
[1759044575757,37.86,202.28,202.24,1.87925356]
[1759044575957,37.86,202.28,202.25,0.66]
[1759044576270,42.80364566,202.28,202.26,0.66]
[1759044576976,44.68289922,202.28,202.26,0.66]
[1759044577767,26.0,202.27,202.26,0.66]
[1759044582365,26.0,202.27,202.24,9.88874988]
[1759044582566,26.0,202.27,202.26,0.66]
[1759044588189,44.68278219,202.29,202.26,0.66]
[1759044596604,45.74322629,202.29,202.26,0.66]
[1759044600504,0.55,202.28,202.22,0.68]
[1759044600804,0.55,202.31,202.24,12.36453255]
[1759044600990,26.0,202.3,202.26,2.93969766]
[1759044601178,26.0,202.3,202.27,0.68]
[1759044601383,26.0,202.29,202.28,0.68]
[1759044601786,26.0,202.29,202.27,0.68]
[1759044602390,28.93969766,202.28,202.26,12.36453255]
[1759044602681,28.93969766,202.28,202.19,12.36410348]
[1759044602682,3.48969766,202.27,202.23,0.68]
[1759044602900,2.93969766,202.26,202.23,13.04453255]
[1759044603908,2.93969766,202.26,202.23,0.68]
[1759044604111,2.93969766,202.26,202.24,3.3289704]
[1759044604700,5.49404999,202.27,202.24,3.3289704]
[1759044604701,7.88374765,202.27,202.24,4.0089704]
[1759044607327,11.21271805,202.27,202.24,4.0089704]
[1759044608412,2.93969766,202.26,202.22,0.68]
[1759044608611,2.93969766,202.26,202.23,5.62502747]
[1759044609400,7.8839138,202.26,202.23,5.62502747]
[1759044609812,2.93969766,202.27,202.23,4.94502747]
[1759044609995,3.33791612,202.26,202.24,0.7]
[1759044610195,2.93969766,202.27,202.24,0.7]
[1759044610396,3.33878561,202.26,202.24,0.7]
[1759044610717,7.88352007,202.28,202.24,0.7]
[1759044610908,3.33878518,202.27,202.24,0.7]
[1759044611108,3.33878518,202.26,202.24,0.7]
[1759044611300,4.94382241,202.28,202.24,0.7]
[1759044611517,3.33914468,202.27,202.25,0.7]
[1759044611707,3.33914468,202.26,202.25,0.7]
[1759044614831,3.33914468,202.26,202.25,8.58407343]
[1759044615009,3.33995591,202.28,202.25,8.58407343]
[1759044615205,26.0,202.29,202.25,8.58407343]
[1759044615206,26.0,202.29,202.26,3.63969766]
[1759044615417,3.34000444,202.28,202.27,0.7]
[1759044618231,3.34000444,202.28,202.27,5.64388688]
[1759044619622,3.34000444,202.28,202.27,0.7]
[1759044620330,49.63340948,202.28,202.16,0.2]
[1759044620511,2.93969766,202.25,202.19,3.59969766]
[1759044620713,3.34000444,202.24,202.2,15.536156]
[1759044620915,3.48969766,202.26,202.21,0.66]
[1759044621114,3.34029823,202.25,202.21,0.66]
[1759044621430,3.34029823,202.24,202.22,0.66]
[1759044621632,8.43391837,202.26,202.22,0.66]
[1759044621805,3.34011026,202.25,202.22,0.66]
[1759044622010,3.34011026,202.24,202.22,0.66]
[1759044622231,8.43391837,202.26,202.22,0.66]
[1759044622417,3.33992833,202.25,202.22,0.66]
[1759044622620,3.33992833,202.24,202.22,0.66]
[1759044622821,8.43391837,202.26,202.22,0.66]
[1759044623014,3.33992833,202.25,202.22,0.66]
[1759044623214,3.33992833,202.24,202.22,0.66]
[1759044623410,8.43391837,202.26,202.22,0.66]
[1759044623631,3.33957454,202.25,202.22,0.66]
[1759044623830,3.33957454,202.24,202.2,14.87984525]
[1759044624026,5.4944397,202.25,202.21,0.66]
[1759044624240,3.3395754,202.24,202.21,0.66]
[1759044624567,4.9444397,202.25,202.22,0.66]
[1759044624755,3.33925151,202.24,202.22,0.66]
[1759044624936,4.9444397,202.25,202.22,0.66]
[1759044625137,3.33925194,202.24,202.22,0.66]
[1759044625359,4.9444397,202.25,202.22,0.66]
[1759044625655,3.33898116,202.24,202.22,0.66]
[1759044625844,4.9444397,202.25,202.22,0.66]
[1759044626044,3.33898073,202.24,202.22,0.66]
[1759044626251,5.4944397,202.25,202.2,23.42512516]
[1759044626448,3.33869172,202.24,202.21,0.66]
[1759044626632,5.4944397,202.25,202.21,0.66]
[1759044626833,3.33869129,202.24,202.22,0.66]
[1759044627033,8.43385725,202.26,202.22,0.66]
[1759044627242,3.33867904,202.25,202.22,0.66]
[1759044627442,8.43385725,202.26,202.22,0.66]
[1759044627734,3.33843059,202.25,202.2,14.87984525]
[1759044627934,28.93969766,202.21,202.16,0.2]
[1759044628138,2.93969766,202.18,202.16,0.2]
[1759044628640,3.88935752,202.18,202.16,0.2]
[1759044628955,11.22497761,202.19,202.16,0.2]
[1759044629273,8.43562009,202.19,202.16,0.2]
[1759044632569,3.48969766,202.19,202.16,0.2]
[1759044632977,4.94608764,202.18,202.16,0.2]
[1759044633268,7.8857853,202.18,202.16,0.2]
[1759044633481,2.93969766,202.18,202.16,0.2]
[1759044634060,2.93969766,202.17,202.16,0.2]
[1759044634371,33.88602995,202.17,202.16,0.2]
[1759044634560,75.64547057,202.17,202.16,0.2]
[1759044635251,72.31602995,202.17,202.16,0.2]
[1759044637888,2.93969766,202.17,202.16,0.2]
[1759044638098,63.88,202.17,202.16,0.86]
[1759044638386,63.88,202.17,202.16,0.2]
[1759044638568,63.88,202.17,202.16,0.86]
[1759044638772,63.88,202.17,202.16,0.2]
[1759044639088,26.0,202.17,202.16,0.2]
[1759044643980,37.88,202.18,202.16,0.2]
[1759044646464,37.88,202.18,202.16,0.86]
[1759044646989,37.86,202.18,202.16,0.2]
[1759044647182,37.86,202.18,202.16,0.86]
[1759044647789,30.94585697,202.19,202.16,0.86]
[1759044648000,37.86,202.18,202.16,0.86]
[1759044648487,30.94585697,202.19,202.16,0.2]
[1759044648676,37.86,202.18,202.16,0.86]
[1759044648866,4.94557251,202.21,202.16,0.86]
[1759044649066,26.0,202.17,202.16,0.2]
[1759044649690,26.0,202.17,202.16,0.86]
[1759044649888,66.79969766,202.2,202.16,0.86]
[1759044650089,26.0,202.18,202.17,0.66]
[1759044650695,2.93969766,202.21,202.17,0.66]
[1759044650871,4.94464042,202.24,202.18,7.88563508]
[1759044651068,7.88433808,202.24,202.19,0.67]
[1759044651273,37.88,202.23,202.19,0.67]
[1759044651681,37.88,202.23,202.2,0.67]
[1759044651885,26.0,202.22,202.21,0.67]
[1759044652569,26.0,202.22,202.19,7.8855026]
[1759044652769,26.0,202.22,202.2,0.67]
[1759044652982,26.0,202.22,202.21,0.67]
[1759044654407,37.88,202.24,202.21,0.67]
[1759044654584,2.93969766,202.27,202.22,0.67]
[1759044654787,39.11889383,202.26,202.22,0.67]
[1759044654991,1.23889383,202.25,202.22,0.67]
[1759044656006,1.23889383,202.25,202.22,5.61509501]
[1759044656313,1.23889383,202.25,202.23,0.67]
[1759044657996,68.80389325,202.27,202.23,0.67]
[1759044658197,1.23886406,202.26,202.23,0.67]
[1759044658378,30.94389325,202.27,202.23,0.67]
[1759044658698,26.0,202.25,202.24,0.67]
[1759044659192,26.0,202.25,202.22,1.88164794]
[1759044659403,3.3251599,202.26,202.23,0.67]